bitfinex-derivatives/quotes_ETHF0:USTF0_20240922
["timestamp","ask_amount","ask_price","bid_price","bid_amount"]
[1727044910724,0.4002,2584.7,2584.0,3.2078]
[1727044911537,3.2078,2584.5,2583.2,3.2078]
[1727044911736,0.78711,2584.7,2583.8,3.2078]
[1727044911925,0.4002,2584.7,2583.8,6.1278]
[1727044912128,0.96694,2585.7,2584.7,0.3869]
[1727044912129,3.2078,2585.5,2584.7,0.3869]
[1727044912327,3.2078,2585.5,2584.7,3.2078]
[1727044912635,3.2078,2585.9,2585.0,3.2078]
[1727044912836,3.59458,2585.6,2584.7,0.38691]
[1727044913036,3.88662,2586.5,2584.7,0.38691]
[1727044913037,3.2078,2586.4,2585.8,0.38673]
[1727044913331,3.2078,2586.4,2585.6,3.2078]
[1727044913728,0.38672,2586.0,2585.3,3.2078]
[1727044913929,3.2078,2585.7,2584.8,6.1278]
[1727044914130,0.38674,2585.8,2585.1,3.2078]
[1727044914330,0.38674,2585.8,2585.4,3.2078]
[1727044914529,0.78053,2585.9,2585.4,3.2078]
[1727044914732,3.8672,2585.8,2585.4,3.2078]
[1727044914932,3.2078,2585.7,2584.9,3.2078]
[1727044915136,0.38678,2585.6,2584.8,2.92]
[1727044915340,3.2078,2585.7,2584.9,3.2078]
[1727044915546,0.38678,2585.6,2584.9,3.2078]
[1727044915733,0.38678,2585.6,2584.8,6.1278]
[1727044916044,3.2078,2585.7,2584.8,2.92]
[1727044916245,3.6026,2585.5,2584.5,3.2078]
[1727044916438,3.2078,2585.3,2584.5,3.2078]
[1727044916635,0.3948,2585.5,2584.8,3.2078]
[1727044916942,0.7816,2585.5,2584.6,3.2078]
[1727044917147,0.7816,2585.5,2584.4,6.1278]
[1727044917335,0.3868,2585.4,2584.5,0.38693]
[1727044917541,0.78159,2585.5,2584.7,0.3869]
[1727044917742,0.3948,2585.5,2584.4,3.2078]
[1727044918042,3.2078,2584.6,2583.7,3.2078]
[1727044918232,0.3924,2584.5,2583.7,3.2078]
[1727044918436,0.3924,2584.5,2583.0,0.2565]
[1727044918437,0.3924,2584.5,2584.0,6.1278]
[1727044918732,0.3846,2585.0,2584.3,3.2078]
[1727044918934,0.3924,2585.4,2584.9,2.92]
[1727044919137,0.38683,2585.3,2584.8,3.2078]
[1727044919339,0.38683,2585.3,2584.6,2.92]
[1727044919638,0.3924,2585.4,2584.5,3.2078]
[1727044919840,3.6002,2585.4,2584.5,3.2078]
[1727044920042,0.38685,2585.1,2584.5,3.2078]
[1727044920243,0.3924,2585.4,2584.5,3.2078]
[1727044920544,0.38685,2585.1,2584.5,3.2078]
[1727044920747,0.38692,2584.6,2584.5,3.2078]
[1727044920936,4.25572,2584.6,2584.5,3.2078]
[1727044921338,3.8688,2584.6,2584.5,3.2078]
[1727044921533,3.8688,2584.6,2583.8,6.1278]
[1727044921741,3.2078,2584.6,2583.8,6.1278]
[1727044921948,3.2078,2584.7,2583.8,6.1278]
[1727044922144,3.2078,2584.7,2583.8,3.2078]
[1727044922343,0.38706,2583.7,2582.8,3.59498]
[1727044922547,0.38706,2583.7,2582.7,3.595]
[1727044922740,0.4104,2583.8,2583.0,3.2078]
[1727044922941,0.4104,2583.8,2583.6,3.2078]
[1727044923146,0.387,2584.6,2583.6,2.92]
[1727044923147,3.2078,2584.4,2583.6,2.92]
[1727044923349,0.3822,2584.8,2584.2,3.2078]
[1727044923540,0.3822,2584.8,2584.1,3.2078]
[1727044923740,0.3822,2584.8,2584.4,3.2078]
[1727044923940,1.17437,2585.7,2584.7,3.2078]
[1727044924158,0.3822,2585.5,2584.7,3.2078]
[1727044924345,0.3822,2585.5,2585.1,3.2078]
[1727044924647,2.48530883,2586.2,2584.8,6.1278]
[1727044924956,3.2078,2585.7,2584.6,3.2078]
[1727044925136,0.38692,2584.7,2584.3,3.2078]
[1727044925340,3.2078,2585.3,2584.3,3.2078]
[1727044925537,3.2078,2585.3,2583.6,3.1765]
[1727044925538,0.3822,2584.6,2584.0,3.2078]
[1727044925743,0.3822,2584.6,2584.3,3.2078]
[1727044925948,1.51858883,2585.3,2584.3,3.2078]
[1727044926252,0.3937,2584.8,2583.9,3.2078]
[1727044926453,0.3937,2584.8,2583.6,3.1765]
[1727044926454,0.3937,2584.8,2584.0,3.2078]
[1727044926650,0.3937,2584.8,2583.4,3.6129]
[1727044926651,0.387,2584.1,2583.4,3.6129]
[1727044926854,0.96728,2584.7,2583.4,3.6129]
[1727044926855,0.38699,2584.3,2583.7,3.2078]
[1727044927152,0.38701,2584.2,2583.4,3.6129]
[1727044927553,3.2078,2584.2,2583.4,3.2078]
[1727044927851,0.7651,2584.1,2583.4,3.2078]
[1727044928444,0.7651,2584.1,2582.8,3.2078]
[1727044928445,3.2078,2583.5,2582.8,3.2078]
[1727044928644,0.38713,2583.5,2583.1,3.2078]
[1727044928849,0.38713,2583.5,2582.8,2.92]
[1727044928850,3.2078,2583.3,2582.5,0.3772]
[1727044929041,1.51858883,2583.5,2582.8,2.92]
[1727044929254,6.13248138,2583.8,2583.2,3.2078]
[1727044929255,2.92468138,2583.8,2583.2,3.2078]
[1727044929556,1.51858883,2584.0,2583.6,2.92]
[1727044929750,3.03717766,2584.9,2583.9,6.1278]
[1727044929751,1.51858883,2584.7,2583.9,6.1278]
[1727044929955,1.91688883,2584.8,2584.0,0.38704]
[1727044930249,0.3983,2584.8,2584.0,3.2078]
[1727044930443,0.3983,2584.8,2584.1,0.38702]
[1727044930645,1.51858883,2584.9,2584.7,2.92]
[1727044930847,7.59461745,2585.9,2584.7,2.92]
[1727044930848,1.51858883,2585.7,2584.7,6.1278]
[1727044931042,3.2078,2585.2,2584.6,3.2078]
[1727044931246,1.90544883,2585.3,2584.6,3.2078]
[1727044931545,1.90544883,2585.3,2584.3,2.92]
[1727044931546,1.51858883,2585.1,2584.3,2.92]
[1727044931848,3.59472,2584.9,2584.2,3.4643]
[1727044932151,0.4054,2585.0,2584.5,3.2078]
[1727044932352,0.4054,2585.0,2584.4,0.38698]
[1727044932551,4.72638883,2585.2,2584.8,3.2078]
[1727044932858,3.54337393,2585.4,2584.8,3.2078]
[1727044933059,0.38688,2585.2,2584.5,3.6139]
[1727044933347,3.59467,2585.2,2584.5,3.6139]
[1727044933556,5.11325883,2585.2,2584.5,3.6139]
[1727044933748,4.72638883,2585.2,2584.3,2.92]
[1727044933953,0.4054,2585.3,2583.9,2.92]
[1727044933954,3.2078,2584.8,2583.9,2.92]
[1727044934249,0.38699,2584.4,2583.8,3.2078]
[1727044934649,4.72638883,2584.5,2583.8,3.2078]
[1727044934848,0.38702,2584.3,2583.8,3.2078]
[1727044935044,1.91988883,2584.4,2583.8,3.2078]
[1727044935239,0.4013,2584.4,2583.9,2.92]
[1727044935443,0.4013,2584.4,2583.8,3.2078]
[1727044935848,0.4013,2584.4,2584.1,3.2078]
[1727044936158,1.51858883,2584.7,2584.1,3.2078]
[1727044936359,0.7963,2584.8,2583.9,2.92]
[1727044936360,1.51858883,2584.8,2584.0,0.3769]
[1727044936654,1.51858883,2584.8,2583.6,8.24033887]
[1727044936655,0.38703,2584.2,2583.6,3.2078]
[1727044936847,3.59482,2584.2,2583.6,3.2078]
[1727044937053,4.72638883,2584.2,2583.1,6.1278]
[1727044937247,1.51858883,2584.1,2583.1,6.1278]
[1727044937449,0.38706,2584.0,2583.1,2.92]
[1727044937752,5.11344883,2584.0,2583.4,3.2078]
[1727044937944,5.11342883,2584.1,2583.5,3.2078]
[1727044938145,4.72638883,2584.1,2583.5,3.2078]
[1727044938345,3.2078,2583.8,2583.1,6.1278]
[1727044938556,0.38708,2583.8,2583.1,6.1278]
[1727044938853,3.2078,2583.6,2582.7,3.2078]
[1727044939055,3.2078,2583.6,2582.7,3.59504]
[1727044939356,0.4013,2584.4,2582.7,3.59504]
[1727044939357,2.53098138,2584.1,2583.5,6.1278]
[1727044939654,1.90560883,2584.3,2583.5,6.1278]
[1727044939856,5.6338851,2584.4,2583.8,3.2078]
[1727044939857,5.51468883,2584.4,2583.8,3.2078]
[1727044940047,5.12768883,2584.4,2583.8,3.2078]
[1727044940247,1.90559883,2584.3,2583.8,3.2078]
[1727044940446,1.51858883,2584.3,2583.5,3.30712]
[1727044940645,5.12768883,2584.4,2583.7,3.2078]
[1727044940850,0.38703,2584.2,2583.7,3.2078]
[1727044941151,1.51858883,2584.3,2584.0,3.2078]
[1727044941352,3.6091,2584.4,2584.0,3.2078]
[1727044941549,0.38704,2584.1,2583.3,3.2078]
[1727044941759,0.38705,2584.0,2583.3,3.2078]
[1727044941952,3.2078,2583.8,2583.3,3.2078]
[1727044942151,0.3871,2583.7,2583.1,3.2078]
[1727044942449,0.38713,2583.5,2582.9,0.3779]
[1727044942644,5.51628883,2583.8,2582.9,0.3779]
[1727044942855,0.38712,2583.6,2583.1,3.2078]
[1727044943058,1.51858883,2583.7,2583.1,3.2078]
[1727044943251,1.51858883,2583.7,2583.2,3.2078]
[1727044943452,0.3871,2583.7,2582.9,0.3779]
[1727044943758,3.2078,2583.5,2582.7,6.1278]
[1727044943966,0.38716,2583.3,2582.7,3.2078]
[1727044944149,0.3924,2583.4,2582.6,0.38725]
[1727044944355,0.77955,2583.4,2582.9,3.2078]
[1727044944664,0.38715,2583.3,2582.6,3.2078]
[1727044945063,0.38716,2583.3,2582.8,3.2078]
[1727044945249,0.3924,2583.4,2582.8,3.2078]
[1727044945453,1.51858883,2583.9,2583.3,3.2078]
[1727044945655,0.38706,2584.0,2583.4,3.2078]
[1727044945853,5.11342883,2584.1,2583.4,3.2078]
[1727044946055,0.38706,2584.0,2583.4,3.2078]
[1727044946253,5.11342883,2584.1,2583.4,3.2078]
[1727044946557,3.2078,2584.1,2583.6,0.3871]
[1727044946758,3.2078,2584.1,2583.4,3.59494]
[1727044947064,3.2078,2584.1,2583.5,0.38712]
[1727044947260,0.3854,2584.2,2583.8,3.2078]
[1727044947970,3.2078,2584.4,2583.9,2.92]
[1727044948263,3.2078,2584.4,2584.3,0.38701]
[1727044948464,3.2078,2584.4,2583.9,6.7896]
[1727044948465,3.2078,2584.4,2584.0,0.2566]
[1727044948654,1.89868883,2585.0,2584.3,0.38699]
[1727044948856,0.3801,2585.0,2584.5,3.2078]
[1727044949370,0.3801,2585.0,2584.0,0.2566]
[1727044949371,0.38694,2584.8,2584.1,3.2078]
[1727044949658,1.89868883,2585.0,2584.5,3.2078]
[1727044949864,1.89868883,2585.0,2584.4,3.2078]
[1727044949865,2.28559883,2585.0,2584.4,3.2078]
[1727044950160,2.28559883,2585.0,2584.4,3.59478]
[1727044950161,1.89868883,2585.0,2584.4,3.59478]
[1727044950364,0.387,2584.4,2583.3,0.38714]
[1727044950550,0.387,2584.4,2583.3,3.2078]
[1727044950551,3.2078,2584.2,2583.3,3.2078]
[1727044950955,3.2078,2584.3,2583.6,3.2078]
[1727044951152,1.51308415,2584.4,2583.6,3.2078]
[1727044951451,3.2078,2584.4,2583.6,3.2078]
[1727044951652,3.5948,2584.4,2583.6,3.2078]
[1727044951956,0.38705,2584.1,2583.6,3.2078]
[1727044952159,0.3866,2584.0,2583.2,3.6098]
[1727044952362,0.3866,2584.0,2583.5,3.2078]
[1727044952556,0.3866,2584.0,2583.2,3.2078]
[1727044952858,0.3866,2584.0,2582.6,0.2566]
[1727044952859,3.2078,2583.3,2582.6,3.2078]
[1727044953464,3.2078,2583.3,2582.9,3.2078]
[1727044953665,0.38714,2583.5,2582.5,3.30727]
[1727044953666,2.28796265,2583.6,2583.2,3.2078]
[1727044953869,0.775,2583.6,2582.7,3.2078]
[1727044954064,0.775,2583.6,2582.3,0.3822]
[1727044954065,3.2078,2583.5,2582.4,3.2078]
[1727044954271,3.2078,2583.5,2582.7,3.2078]
[1727044954272,3.2078,2583.2,2582.7,3.2078]
[1727044954465,4.72065464,2583.5,2582.5,2.92]
[1727044954665,2.28785464,2583.6,2582.6,3.2078]
[1727044954964,0.4043,2583.6,2583.2,3.2078]
[1727044955166,3.2078,2583.3,2582.6,8.08241581]
[1727044955367,3.8712,2583.5,2582.2,3.2078]
[1727044955368,1.51285464,2583.5,2582.2,3.2078]
[1727044955562,1.51285464,2583.5,2582.3,0.3873]
[1727044955563,3.2078,2583.3,2582.3,0.3873]
[1727044955757,3.2078,2583.3,2582.4,0.38729]
[1727044955963,0.38717,2583.2,2582.2,3.59511]
[1727044956162,3.2078,2582.6,2582.0,0.256]
[1727044956359,3.2078,2582.9,2582.0,0.256]
[1727044956562,3.2078,2582.9,2582.2,3.59511]
[1727044956766,0.3752,2583.1,2582.4,0.38729]
[1727044956969,3.2078,2583.3,2582.5,0.38727]
[1727044957468,3.2078,2583.3,2582.3,2.92]
[1727044957469,3.2078,2583.3,2582.7,3.2078]
[1727044957673,0.38714,2583.4,2582.3,6.1278]
[1727044957875,3.2078,2583.3,2582.6,0.38725]
[1727044958763,3.2078,2583.0,2582.3,6.51509]
[1727044958974,4.72065464,2583.4,2582.6,3.2078]
[1727044959171,3.2078,2583.4,2582.6,3.2078]
[1727044959373,3.2078,2583.4,2582.3,3.3073]
[1727044959670,3.2078,2583.1,2582.3,2.92]
[1727044959873,3.2078,2582.9,2582.0,0.256]
[1727044960062,3.2078,2583.0,2582.0,0.256]
[1727044960270,0.38726,2582.6,2582.0,0.256]
[1727044960583,3.59508,2582.5,2581.7,0.38739]
[1727044960873,3.59508,2582.5,2581.6,3.2078]
[1727044960874,5.11495464,2582.8,2582.0,3.2078]
[1727044961062,3.2078,2582.8,2582.2,3.30731]
[1727044961264,3.2078,2582.8,2582.2,2.92]
[1727044961474,3.2078,2582.8,2582.2,3.30731]
[1727044962272,3.2078,2582.8,2582.2,2.92]
[1727044962575,3.59503,2582.8,2582.1,0.4024]
[1727044962774,3.2078,2582.8,2581.6,3.2078]
[1727044962973,3.2078,2582.8,2581.6,3.5952]
[1727044962974,0.38729,2582.4,2581.6,3.5952]
[1727044963274,3.2078,2582.2,2581.6,3.2078]
[1727044963776,3.2078,2582.2,2581.5,0.38742]
[1727044963972,3.2078,2582.5,2581.7,2.92]
[1727044964275,3.2078,2582.6,2582.0,0.38734]
[1727044964573,3.2078,2582.6,2581.9,0.38736]
[1727044964963,3.998,2582.9,2581.8,8.24968436]
[1727044965274,3.998,2582.9,2581.7,2.92]
[1727044965275,3.2078,2582.6,2581.7,2.92]
[1727044965474,3.59506,2582.6,2581.8,0.38737]
[1727044965767,3.998,2582.9,2582.2,0.38732]
[1727044965977,3.998,2582.9,2582.1,6.1278]
[1727044966170,3.2078,2582.9,2582.1,6.1278]
[1727044966376,3.2078,2582.9,2582.4,0.38728]
[1727044966564,3.2078,2582.9,2582.2,7.99254525]
[1727044966770,3.2078,2582.9,2582.7,0.38723]
[1727044966970,3.2078,2582.9,2582.5,3.30726]
[1727044967270,3.2078,2582.9,2582.5,2.92]
[1727044967576,3.2078,2582.9,2582.5,0.38727]
[1727044967876,3.2078,2582.6,2581.3,4.23166618]
[1727044968171,3.2078,2582.5,2582.1,0.38733]
[1727044968371,3.5912,2582.8,2582.0,2.92]
[1727044968572,3.5912,2582.8,2582.1,0.38733]
[1727044968775,3.97843,2582.8,2582.0,3.30734]
[1727044969176,3.5912,2582.8,2582.0,2.92]
[1727044969566,3.97844,2582.8,2582.0,3.30734]
[1727044969775,3.5912,2582.8,2581.8,3.2078]
[1727044969970,3.97843,2582.8,2582.1,3.2078]
[1727044970172,3.5912,2582.8,2581.7,6.1278]
[1727044970372,0.38729,2582.4,2581.7,3.2078]
[1727044970580,3.2078,2582.5,2581.4,0.4099]
[1727044970581,3.59508,2582.5,2581.4,3.6177]
[1727044970769,3.59508,2582.5,2581.7,0.38739]
[1727044970967,0.38732,2582.3,2581.4,3.6177]
[1727044971177,3.2078,2582.3,2581.8,0.38738]
[1727044971379,3.2078,2582.6,2581.9,0.38736]
[1727044971677,3.2078,2582.6,2582.0,0.38735]
[1727044971872,3.2078,2582.6,2581.7,3.2078]
[1727044972073,0.38728,2582.5,2581.7,3.59519]
[1727044972275,0.79488,2582.5,2581.7,3.59519]
[1727044972468,0.4076,2582.5,2581.7,3.2078]
[1727044972681,0.4076,2582.5,2582.1,0.38733]
[1727044972876,0.3834,2582.8,2581.7,3.2078]
[1727044973177,0.3834,2582.8,2582.5,0.38727]
[1727044973567,0.3834,2582.8,2582.4,0.38728]
[1727044973784,0.3834,2582.8,2582.1,0.3992]
[1727044974078,3.2078,2582.2,2581.5,3.2078]
[1727044974280,3.59507,2582.6,2581.9,0.38736]
[1727044974481,3.2078,2582.6,2581.5,3.2078]
[1727044974781,1.89625464,2582.8,2582.3,0.3873]
[1727044974782,0.3834,2582.8,2582.3,0.3873]
[1727044974974,0.3834,2582.8,2582.3,3.2078]
[1727044975370,0.3834,2582.8,2582.5,0.38727]
[1727044975677,3.2078,2583.2,2582.5,0.38727]
[1727044975879,0.4054,2583.2,2582.6,6.1278]
[1727044976072,3.2078,2583.8,2582.9,3.2078]
[1727044976275,0.3871,2583.7,2583.0,0.38719]
[1727044976885,0.3871,2583.7,2583.1,0.38718]
[1727044977072,3.2078,2583.8,2582.9,3.2078]
[1727044977274,3.2078,2583.5,2583.1,0.38718]
[1727044977484,0.38711,2583.6,2582.9,3.2078]
[1727044977677,0.38711,2583.6,2582.6,2.92]
[1727044977678,0.38718,2583.2,2582.6,3.2078]
[1727044977882,3.2078,2583.2,2582.6,3.2078]
[1727044978083,3.2078,2582.9,2581.9,3.2078]
[1727044978278,3.2078,2583.0,2582.3,0.3873]
[1727044978585,0.38722,2582.9,2582.2,3.59511]
[1727044978791,3.2078,2583.0,2582.3,0.3873]
[1727044979080,3.2078,2583.0,2581.8,2.92]
[1727044979081,3.2078,2582.7,2581.8,2.92]
[1727044979486,3.2078,2582.7,2582.0,0.38734]
[1727044979677,0.38727,2582.6,2582.0,0.38734]
[1727044979881,3.2078,2582.4,2581.5,0.3708]
[1727044980080,3.2078,2581.7,2581.0,3.2078]
[1727044980281,3.2078,2581.7,2580.6,3.2078]
[1727044980476,0.3945,2581.6,2581.1,0.38748]
[1727044980782,1.51285464,2582.2,2581.3,3.2078]
[1727044980981,0.3945,2582.2,2581.6,3.2078]
[1727044981487,0.3945,2582.2,2581.3,3.2078]
[1727044981789,0.3945,2582.2,2581.2,5.36505625]
[1727044981790,0.3945,2582.2,2581.6,3.2078]
[1727044982082,0.3945,2582.2,2581.6,3.59516]
[1727044982285,0.3945,2582.2,2581.3,3.2078]
[1727044982479,0.3945,2582.2,2581.6,3.2078]
[1727044982677,0.3945,2582.2,2581.6,3.59517]
[1727044982981,0.3945,2582.2,2582.1,0.3873]
[1727044983286,4.72065464,2582.6,2581.9,3.2078]
[1727044983287,3.2078,2582.6,2581.9,3.2078]
[1727044983679,1.1323,2582.8,2582.2,0.38727]
[1727044983983,1.1323,2582.8,2582.4,0.38725]
[1727044984383,1.1323,2582.8,2582.5,3.2078]
[1727044984590,1.51285464,2583.2,2582.8,0.38718]
[1727044984894,3.2078,2583.3,2582.8,0.38719]
[1727044985195,0.38714,2583.2,2582.4,3.2078]
[1727044985382,5.91435464,2583.6,2582.2,0.38727]
[1727044985383,0.38719,2582.9,2582.2,0.38727]
[1727044985582,0.38719,2582.9,2582.1,3.2078]
[1727044985583,0.7902,2582.8,2582.1,3.59509]
[1727044985791,0.7907,2582.7,2582.2,0.38727]
[1727044986192,0.38725,2582.4,2581.7,3.2078]
[1727044986393,3.2078,2582.4,2581.7,3.2078]
[1727044986886,0.7907,2582.7,2582.1,0.3873]
[1727044986887,2.69076464,2582.7,2582.1,0.3873]
[1727044987086,2.69076464,2582.7,2582.0,0.38731]
[1727044987087,0.38723,2582.6,2582.0,0.38731]
[1727044987280,3.2078,2582.5,2581.6,3.2078]
[1727044987488,3.2078,2582.5,2581.9,0.38731]
[1727044987687,1.51285464,2582.6,2582.3,0.38725]
[1727044987888,0.3853,2582.7,2582.2,3.2078]
[1727044988083,0.3853,2582.7,2582.6,0.38722]
[1727044988389,0.3853,2582.7,2582.4,0.38724]
[1727044988887,0.3853,2582.7,2582.3,0.38725]
[1727044989286,0.3853,2582.7,2581.3,1.02386618]
[1727044989287,3.2078,2582.5,2581.3,1.02386618]
[1727044989489,0.3981,2582.4,2581.7,3.2078]
[1727044989689,0.3981,2582.4,2582.1,0.3873]
[1727044989990,0.3981,2582.4,2581.3,3.88853]
[1727044989991,3.8728,2582.3,2581.9,3.2078]
[1727044990188,3.6059,2582.4,2581.4,3.2078]
[1727044990390,3.5951,2582.1,2581.5,0.38738]
[1727044990586,0.3873,2582.1,2581.5,0.38738]
[1727044990892,0.3981,2582.4,2581.9,3.2078]
[1727044991187,0.3853,2582.7,2582.1,3.2078]
[1727044991391,0.3853,2582.7,2582.2,0.38728]
[1727044991594,0.38722,2582.6,2582.1,0.38729]
[1727044991785,0.3853,2582.7,2582.2,0.38727]
[1727044991982,0.38723,2582.6,2581.8,3.6162]
[1727044992187,3.2078,2582.5,2581.5,3.2078]
[1727044992491,0.38727,2582.3,2581.7,0.38735]
[1727044992794,0.38731,2582.1,2581.5,3.59518]
[1727044993001,0.38732,2582.0,2581.5,3.59518]
[1727044993293,1.196,2582.1,2581.5,0.38738]
[1727044993497,0.8087,2582.1,2581.7,0.38735]
[1727044993684,0.8087,2582.1,2581.5,3.2078]
[1727044993886,2.91628138,2582.7,2582.3,0.38726]
[1727044993887,0.4051,2582.6,2582.3,0.38726]
[1727044994086,1.89815464,2582.7,2581.8,3.2078]
[1727044994288,0.3853,2582.7,2582.2,0.38727]
[1727044994682,0.3853,2582.7,2582.3,0.38727]
[1727044994883,1.91795464,2582.9,2582.6,0.38722]
[1727044995089,1.91795464,2582.9,2582.1,2.92]
[1727044995286,0.3872,2582.8,2582.3,3.59506]
[1727044995592,2.30513464,2582.9,2582.4,0.38725]
[1727044995791,0.38721,2582.7,2582.2,0.38727]
[1727044996000,1.91795464,2582.9,2582.0,3.584]
[1727044996215,1.91795464,2582.9,2581.8,0.3904]
[1727044996216,0.3873,2582.2,2581.6,0.38736]
[1727044996392,1.51285464,2582.2,2581.6,0.38736]
[1727044996589,0.3982,2582.1,2581.5,0.38738]
[1727044996785,0.7997,2582.1,2581.5,0.38738]
[1727044996990,3.2078,2581.8,2581.2,3.59522]
[1727044997195,1.51285464,2581.9,2581.2,3.59522]
[1727044997386,0.38737,2581.7,2581.2,3.59522]
[1727044997693,1.51285464,2581.9,2581.3,0.38741]
[1727044997896,1.51285464,2581.9,2581.2,3.2078]
[1727044998399,1.51285464,2581.8,2581.2,3.2078]
[1727044998693,1.51285464,2581.5,2580.9,3.2078]
[1727044999108,1.51285464,2581.6,2581.3,0.38741]
[1727044999588,1.51285464,2581.6,2580.9,2.92]
[1727044999589,1.90022464,2581.6,2581.2,0.38742]
[1727044999794,0.38739,2581.5,2581.1,0.38744]
[1727045000092,1.39943374,2581.3,2580.9,0.38747]
[1727045000289,1.01201374,2581.3,2580.7,3.2078]
[1727045000489,1.39942374,2581.4,2581.0,0.38745]
[1727045001000,1.01201374,2581.4,2580.7,3.2078]
[1727045001191,1.39941374,2581.4,2581.0,0.38745]
[1727045001602,1.01201374,2581.2,2580.6,0.38752]
[1727045001796,0.38748,2581.0,2580.6,0.38752]
[1727045002304,0.38748,2581.0,2580.4,0.4087]
[1727045002305,4.21981374,2581.0,2580.4,0.4087]
[1727045002606,1.01201374,2580.5,2580.3,3.2078]
[1727045002896,2.0247851,2580.8,2580.6,0.38752]
[1727045002897,1.01201374,2580.8,2580.6,0.38752]
[1727045003093,1.90031464,2581.0,2580.6,0.38752]
[1727045003094,1.01201374,2580.9,2580.6,0.38752]
[1727045003289,1.39947374,2581.0,2580.7,0.38751]
[1727045003797,1.39947374,2581.0,2580.3,3.2078]
[1727045003798,3.2078,2580.9,2580.1,0.969]
[1727045003997,3.2078,2580.9,2580.3,0.38756]
[1727045003998,1.98071374,2580.9,2580.3,0.38756]
[1727045004195,0.38756,2580.4,2579.7,0.3926]
[1727045004390,0.38754,2580.5,2580.1,0.38759]
[1727045004691,1.39949374,2580.9,2580.6,0.38752]
[1727045004898,1.39949374,2580.9,2580.2,3.2078]
[1727045004899,1.01201374,2581.2,2580.5,3.2078]
[1727045005090,1.01201374,2581.4,2581.3,0.38742]
[1727045005289,1.51285464,2581.5,2581.4,0.3874]
[1727045005494,3.2078,2581.9,2581.6,0.38736]
[1727045005695,4.21981374,2581.9,2581.1,2.92]
[1727045005901,0.38734,2581.8,2581.5,0.38738]
[1727045006097,5.68898464,2581.9,2581.3,0.38741]
[1727045006302,0.38737,2581.7,2581.3,0.38741]
[1727045006701,0.38737,2581.7,2581.4,0.3874]
[1727045007098,0.38737,2581.7,2581.3,0.38741]
[1727045007295,3.2078,2581.6,2581.2,0.38742]
[1727045007498,0.38741,2581.4,2581.1,0.38744]
[1727045008103,0.38741,2581.4,2581.0,0.38745]
[1727045008408,0.38741,2581.4,2580.1,1.938]
[1727045008409,0.38753,2580.6,2580.2,0.38757]
[1727045008794,3.2078,2580.7,2579.8,3.6163]
[1727045009101,3.2078,2580.7,2579.9,0.38763]
[1727045009102,0.38757,2580.3,2579.9,0.38763]
[1727045009300,0.38759,2580.2,2579.8,0.38763]
[1727045009499,3.59536,2580.4,2580.0,0.38761]
[1727045009693,0.38759,2580.2,2579.8,0.38764]
[1727045009896,0.38757,2580.3,2579.7,3.2078]
[1727045010097,0.38758,2580.2,2579.5,2.92]
[1727045010399,0.38758,2580.2,2579.8,0.38763]
[1727045010796,0.3876,2580.1,2579.7,0.38765]
[1727045011101,3.2078,2580.4,2579.4,3.5808]
[1727045011307,3.2078,2580.4,2579.6,0.38766]
[1727045011606,0.38762,2580.0,2579.5,0.38768]
[1727045011807,0.38762,2580.0,2579.4,3.2078]
[1727045012102,3.2078,2579.8,2579.4,3.2078]
[1727045012306,0.78336,2579.7,2579.4,3.2078]
[1727045012603,0.78336,2579.7,2578.3,1.75224]
[1727045012604,0.38768,2579.6,2579.1,3.59554]
[1727045012804,0.38769,2579.5,2579.1,0.38774]
[1727045013112,3.2078,2579.5,2578.4,16.02194843]
[1727045013408,0.3957,2579.7,2578.4,8.55739248]
[1727045013409,0.38779,2578.9,2578.4,8.55739248]
[1727045013609,3.2078,2579.2,2578.7,0.3878]
[1727045013906,3.2078,2579.2,2578.3,0.374]
[1727045013907,0.38775,2579.1,2578.6,0.38781]
[1727045014106,0.38779,2578.9,2578.3,0.76186]
[1727045014305,0.3878,2578.8,2578.2,0.38787]
[1727045014509,3.2078,2578.6,2578.1,0.38789]
[1727045014810,0.3879,2578.1,2577.9,3.2078]
[1727045015202,3.8792,2578.0,2577.9,3.2078]
[1727045015401,0.38791,2578.1,2577.9,3.2078]
[1727045015800,7.087,2578.0,2577.1,3.2078]
[1727045016002,0.38793,2577.9,2577.4,0.38799]
[1727045016208,3.2078,2578.0,2576.9,0.8107]
[1727045016400,3.2078,2578.0,2576.8,12.8988]
[1727045016401,0.38804,2577.2,2576.8,3.2078]
[1727045016607,0.38804,2577.2,2575.8,2.92]
[1727045016608,3.2078,2577.2,2576.4,3.59594]
[1727045016806,3.2078,2576.9,2576.4,3.59595]
[1727045016999,3.59588,2576.9,2576.4,3.2078]
[1727045017310,0.96996,2577.6,2576.4,3.2078]
[1727045017311,3.2078,2577.2,2576.4,3.2078]
[1727045017507,3.2078,2577.2,2576.5,0.38814]
[1727045017707,3.59583,2577.2,2576.5,0.38814]
[1727045017904,0.38805,2577.1,2576.4,3.59595]
[1727045018103,3.2078,2577.0,2576.4,3.2078]
[1727045018412,3.2078,2577.3,2576.4,3.2078]
[1727045018604,0.96998,2577.5,2576.4,3.2078]
[1727045018605,3.2078,2577.0,2576.4,3.2078]
[1727045019005,0.3695,2577.7,2576.6,0.38811]
[1727045019006,0.38803,2577.3,2576.6,0.38811]
[1727045019200,3.2078,2577.3,2576.4,3.2078]
[1727045019607,3.2078,2577.6,2576.8,0.38808]
[1727045019807,3.2078,2577.6,2576.7,3.2078]
[1727045020311,0.3695,2577.7,2577.4,3.2078]